bitfinex/quotes_ETHUSD_20230103
["timestamp","ask_amount","ask_price","bid_price","bid_amount"]
[1672782574167,4.5200899,1212.6,1212.5,2.14345426]
[1672782574476,4.5200899,1212.6,1212.5,2.04445426]
[1672782576811,4.5200899,1212.6,1212.5,2.04139248]
[1672782578337,4.5200899,1212.6,1212.5,6.5309398]
[1672782578703,4.5200899,1212.6,1212.5,6.6299398]
[1672782580670,4.5200899,1212.6,1212.5,2.14039248]
[1672782580848,4.5200899,1212.6,1212.5,6.5309398]
[1672782581059,4.5200899,1212.6,1212.5,2.14039248]
[1672782581326,4.5200899,1212.6,1212.5,6.5309398]
[1672782581542,4.5200899,1212.6,1212.5,2.14039248]
[1672782581713,4.5200899,1212.6,1212.5,6.5309398]
[1672782582084,4.5200899,1212.6,1212.5,6.6299398]
[1672782589297,4.5200899,1212.6,1212.5,16.5268398]
[1672782594384,0.8072798,1212.6,1212.5,16.5268398]
[1672782594954,4.52108739,1212.6,1212.5,16.5268398]
[1672782597412,0.8072798,1212.6,1212.5,16.5268398]
[1672782597788,4.52129827,1212.6,1212.5,16.5268398]
[1672782598006,0.8072798,1212.6,1212.5,16.5268398]
[1672782599886,5.13007613,1212.6,1212.5,2.14039248]
[1672782600062,5.13007613,1212.6,1212.5,11.93489244]
[1672782600271,4.5211925,1212.6,1212.5,16.52343976]
[1672782600486,4.5211925,1212.6,1212.5,36.31723976]
[1672782622798,4.5211925,1212.6,1212.5,36.31487148]
[1672782623389,3.09362535,1212.6,1212.5,51.03780963]
[1672782623606,5.56844499,1212.6,1212.5,57.23467077]
[1672782624041,5.56844499,1212.6,1212.5,68.23467077]
[1672782624396,2.47481964,1212.6,1212.5,68.85377077]
[1672782624610,5.56844499,1212.6,1212.5,68.85377077]
[1672782624757,2.47481964,1212.6,1212.5,71.85377077]
[1672782624968,5.63444499,1212.7,1212.5,71.85377077]
[1672782625237,2.47481964,1212.7,1212.6,44.4243394]
[1672782625448,2.47481964,1212.7,1212.6,50.02425636]
[1672782627411,2.47481964,1212.7,1212.6,59.92034636]
[1672782629917,5.70537132,1212.8,1212.6,59.92034636]
[1672782630128,5.63937132,1212.8,1212.7,28.36174826]
[1672782630339,5.56844499,1212.8,1212.7,52.2667409]
[1672782630759,5.56623035,1212.8,1212.7,52.2667409]
[1672782631959,2.47481964,1212.8,1212.7,52.2667409]
[1672782633973,2.47481964,1212.8,1212.7,50.2187409]
[1672782637298,2.48825918,1212.9,1212.7,59.41560204]
[1672782637509,0.01343954,1212.9,1212.8,52.2928694]
[1672782637742,0.01343954,1212.9,1212.8,61.47337187]
[1672782638647,0.01543954,1212.9,1212.8,61.70037187]
[1672782638907,0.01343954,1212.9,1212.8,61.70337187]
[1672782642548,0.01343954,1212.9,1212.8,61.47337187]
[1672782648856,0.80545449,1212.9,1212.8,61.47337187]
[1672782649046,0.80545449,1212.9,1212.8,56.99816361]
[1672782649255,0.80545449,1212.9,1212.8,54.95216361]
[1672782652030,0.80545449,1212.9,1212.8,55.18216361]
[1672782653077,0.80545449,1212.9,1212.8,45.28771361]
[1672782654421,0.80545449,1212.9,1212.8,45.28542928]
[1672782656359,0.80545449,1212.9,1212.8,25.49652928]
[1672782656512,5.28066275,1212.9,1212.8,9.29057681]
[1672782656969,7.75548239,1212.9,1212.8,9.29057681]
[1672782658314,7.75548239,1212.9,1212.8,19.18502681]
[1672782658524,7.75548239,1212.9,1212.8,29.07947681]
[1672782658945,10.84060672,1212.9,1212.8,29.07947681]
[1672782659163,7.75548239,1212.9,1212.8,29.07947681]
[1672782660732,7.75548239,1212.9,1212.8,19.18502681]
[1672782660981,10.84060672,1212.9,1212.8,19.18502681]
[1672782661291,6.36539846,1212.9,1212.8,19.18502681]
[1672782661507,6.36539846,1212.9,1212.8,29.07947681]
[1672782662325,10.84060672,1212.9,1212.8,29.07947681]
[1672782663190,3.89057882,1212.9,1212.8,29.07947681]
[1672782663364,8.36578708,1212.9,1212.8,29.07947681]
[1672782663717,8.36368285,1212.9,1212.8,29.07947681]
[1672782666287,8.36368285,1212.9,1212.8,19.18502681]
[1672782667394,8.36368285,1212.9,1212.8,9.29057681]
[1672782670592,8.36368285,1212.9,1212.8,0.099]
[1672782670809,32.79306697,1212.9,1212.7,2.029]
[1672782671111,4.47520826,1212.8,1212.7,4.14886114]
[1672782671961,8.18332038,1212.8,1212.7,4.14886114]
[1672782673064,4.47520826,1212.8,1212.6,12.03864]
[1672782673277,5.56007118,1212.7,1212.6,0.099]
[1672782673643,5.56007118,1212.7,1212.5,14.94468]
[1672782673644,27.35467669,1212.7,1212.5,5.147]
[1672782673960,27.35467669,1212.7,1212.5,9.29586114]
[1672782673961,6.9465342,1212.6,1212.5,9.29586114]
[1672782674112,7.56413669,1212.6,1212.5,4.24786114]
[1672782674325,17.46022669,1212.6,1212.5,4.14886114]
[1672782674576,17.46022669,1212.6,1212.4,13.15504854]
[1672782674810,6.94670155,1212.5,1212.4,15.25590968]
[1672782674974,6.94670155,1212.5,1212.4,4.25590968]
[1672782675184,6.94670155,1212.5,1212.4,0.00804854]
[1672782675421,16.84360155,1212.5,1212.4,0.00804854]
[1672782676365,6.94670155,1212.5,1212.4,0.00804854]
[1672782677327,16.84360155,1212.5,1212.4,0.00804854]
[1672782678336,6.94670155,1212.5,1212.4,0.00804854]
[1672782678619,16.84360155,1212.5,1212.4,0.00804854]
[1672782678794,26.74050155,1212.5,1212.4,0.00804854]
[1672782679163,16.84360155,1212.5,1212.4,0.00804854]
[1672782679614,36.63740155,1212.5,1212.4,0.00804854]
[1672782680111,37.25483669,1212.5,1212.4,0.00804854]
[1672782680360,40.63546478,1212.5,1212.4,0.00804854]
[1672782680685,44.3435769,1212.5,1212.4,0.00804854]
[1672782681045,43.71622362,1212.5,1212.4,0.00804854]
[1672782682004,41.25456478,1212.5,1212.4,0.00804854]
[1672782682207,54.8595769,1212.5,1212.4,0.00804854]
[1672782682683,44.9626769,1212.5,1212.4,0.00804854]
[1672782683676,41.25456478,1212.5,1212.4,0.00804854]
[1672782684136,44.9626769,1212.5,1212.4,0.00804854]
[1672782684330,41.25456478,1212.5,1212.4,0.00804854]
[1672782684683,41.25456478,1212.5,1212.4,0.00431951]
[1672782685040,44.33234277,1212.5,1212.4,0.00431951]
[1672782686993,24.53854277,1212.5,1212.4,0.00431951]
[1672782687169,26.99839483,1212.5,1212.4,0.00431951]
[1672782687371,36.89529483,1212.5,1212.4,0.00431951]
[1672782689244,33.81751684,1212.5,1212.4,0.00431951]
[1672782689665,29.34230858,1212.5,1212.4,0.00431951]
[1672782689956,14.54850858,1212.5,1212.4,0.00431951]
[1672782690135,8.07895206,1212.5,1212.4,0.00431951]
[1672782694979,7.45985206,1212.5,1212.4,0.00431951]
[1672782695296,7.45985206,1212.5,1212.4,9.90203951]
[1672782695470,7.45985206,1212.5,1212.4,0.10331951]
[1672782695663,7.45985206,1212.5,1212.4,0.00431951]
[1672782695883,5.0,1212.5,1212.4,0.00431951]
[1672782696258,5.0,1212.5,1212.4,9.90203951]
[1672782696453,5.0,1212.5,1212.4,0.10331951]
[1672782696763,10.65367671,1212.5,1212.4,0.00431951]
[1672782700036,10.65367671,1212.5,1212.4,9.90203951]
[1672782700177,7.45985206,1212.5,1212.4,10.00103951]
[1672782702345,7.45985206,1212.5,1212.4,0.10331951]
[1672782702659,7.45985206,1212.5,1212.4,0.00431951]
[1672782707221,10.53763005,1212.5,1212.4,0.00431951]
[1672782707561,10.53763005,1212.5,1212.4,0.00053665]
[1672782709168,8.07777799,1212.5,1212.4,0.00053665]
[1672782711006,5.0,1212.5,1212.4,0.00053665]
[1672782711216,8.70811212,1212.5,1212.4,0.00053665]
[1672782711479,5.0,1212.5,1212.4,0.00053665]
[1672782712218,8.70811212,1212.5,1212.4,0.00053665]
[1672782715661,8.70811212,1212.5,1212.4,19.79597665]
[1672782715905,8.70811212,1212.5,1212.4,19.89497665]
[1672782716229,3.70811212,1212.5,1212.4,19.89497665]
[1672782716588,3.70811212,1212.5,1212.4,24.37018491]
[1672782717985,3.70811212,1212.5,1212.4,19.89497665]
[1672782720262,3.70811212,1212.5,1212.4,9.99725665]
[1672782723551,3.70811212,1212.5,1212.4,0.09953665]
[1672782723762,5.45674961,1212.5,1212.4,0.00053665]
[1672782724102,6.74863749,1212.5,1212.4,0.00053665]
[1672782724315,11.07143382,1212.5,1212.4,0.00053665]
[1672782724671,15.54664208,1212.5,1212.4,0.00053665]
[1672782726932,25.44354208,1212.5,1212.4,0.00053665]
[1672782727511,15.54664208,1212.5,1212.4,0.00053665]
[1672782727759,25.44354208,1212.5,1212.4,0.00053665]
[1672782731498,5.00306188,1212.4,1212.3,0.00211223]
[1672782731718,13.19107522,1212.4,1212.3,0.00211223]
[1672782732553,23.08879522,1212.4,1212.3,0.00211223]
[1672782732975,23.08891733,1212.4,1212.3,0.00211223]
[1672782733181,29.27371014,1212.4,1212.3,0.00211223]
[1672782733607,33.59650647,1212.4,1212.3,0.00211223]
[1672782734371,29.27371014,1212.4,1212.3,0.00211223]
[1672782734779,32.9862408,1212.4,1212.3,0.00211223]
[1672782734981,13.19079025,1212.4,1212.3,0.00211223]
[1672782738086,13.19072871,1212.4,1212.3,0.00211223]
[1672782740403,13.19072871,1212.4,1212.3,4.47732049]
[1672782740714,8.19072871,1212.4,1212.3,14.37585049]
[1672782740903,3.71552045,1212.4,1212.3,39.94436314]
[1672782741498,3.71552045,1212.4,1212.3,47.09322428]
[1672782741711,3.09647524,1212.4,1212.3,49.37222428]
[1672782741940,3.09647524,1212.4,1212.3,49.867396]
[1672782745301,5.57067262,1212.4,1212.3,49.867396]
[1672782753033,2.47725926,1212.4,1212.3,49.867396]
[1672782753219,2.47725926,1212.4,1212.3,39.968866]
[1672782754379,3.09647524,1212.4,1212.3,30.070336]
[1672782754597,3.09647524,1212.4,1212.3,20.171806]
[1672782755622,3.09647524,1212.4,1212.3,20.168901]
[1672782756726,7.5716835,1212.4,1212.3,20.168901]
[1672782759431,3.09647524,1212.4,1212.3,20.168901]
[1672782759642,3.09293031,1212.4,1212.3,20.168901]
[1672782764174,3.09293031,1212.4,1212.3,19.67372928]
[1672782767790,7.56813857,1212.4,1212.3,19.67372928]
[1672782768838,3.09293031,1212.4,1212.3,19.67372928]
[1672782769611,3.09293031,1212.4,1212.3,17.63272928]
[1672782771683,3.09293031,1212.4,1212.3,27.53125928]
[1672782776117,8.18766683,1212.4,1212.3,27.53125928]
[1672782776348,8.25366683,1212.5,1212.3,27.53125928]
[1672782776680,8.18766683,1212.5,1212.4,2.049]
[1672782777309,18.08456683,1212.5,1212.4,2.049]
[1672782777904,18.08456683,1212.5,1212.4,6.51634199]
[1672782778149,8.18766683,1212.5,1212.4,2.148]
[1672782778379,8.18766683,1212.5,1212.4,2.049]
[1672782778516,18.08456683,1212.5,1212.4,2.049]
[1672782780196,8.18766683,1212.5,1212.4,2.049]
[1672782780630,4.47520826,1212.5,1212.4,2.049]
[1672782781052,42.23124005,1212.5,1212.4,2.049]
[1672782781309,52.12814005,1212.5,1212.4,2.049]
[1672782781630,42.23124005,1212.5,1212.3,3.099]
[1672782781935,8.18827344,1212.4,1212.3,3.0]
[1672782782130,14.37292826,1212.4,1212.3,3.0]
[1672782782515,18.0859687,1212.4,1212.3,3.0]
[1672782783156,18.0859687,1212.4,1212.3,2.99620611]
[1672782783511,18.0859687,1212.4,1212.2,2.140096]
[1672782783691,3.71304301,1212.3,1212.2,6.18995714]
[1672782783897,3.71304301,1212.3,1212.2,9.28895714]
[1672782784091,3.71304301,1212.3,1212.2,6.28895714]
[1672782784366,4.47520826,1212.3,1212.2,6.28895714]
[1672782784581,8.25425127,1212.4,1212.2,16.18830714]
[1672782784843,8.18825127,1212.4,1212.2,16.18830714]
[1672782786464,3.09280136,1212.3,1212.2,16.18830714]
[1672782786675,3.09280136,1212.3,1212.2,19.18830714]
[1672782786951,3.09280136,1212.3,1212.2,29.08765714]
[1672782788812,7.56800962,1212.3,1212.2,29.08765714]
[1672782789016,7.56800962,1212.3,1212.2,38.98700714]
[1672782789784,3.09480136,1212.3,1212.2,38.98400714]
[1672782789933,7.56800962,1212.3,1212.2,38.98700714]
[1672782790415,7.57000962,1212.3,1212.2,38.98400714]
[1672782790561,7.56800962,1212.3,1212.2,38.98700714]
[1672782790771,3.09280136,1212.3,1212.2,38.98700714]
[1672782792985,4.47520826,1212.3,1212.2,38.98700714]
[1672782793195,8.25425127,1212.4,1212.2,38.98700714]
[1672782793408,8.18825127,1212.4,1212.2,38.98700714]
[1672782794720,3.71304301,1212.3,1212.2,38.98700714]
[1672782795926,8.25425127,1212.4,1212.2,38.98700714]
[1672782796172,8.18825127,1212.4,1212.2,38.98700714]
[1672782796362,8.18825127,1212.4,1212.2,55.35535884]
[1672782796363,3.09217821,1212.3,1212.2,55.35535884]
[1672782799188,3.09217821,1212.3,1212.2,55.58535884]
[1672782801447,3.09217821,1212.3,1212.2,57.63435884]
[1672782802045,3.8470833,1212.3,1212.2,57.63435884]
[1672782805010,3.8470833,1212.3,1212.2,57.63115423]
[1672782806030,3.8470833,1212.3,1212.2,47.73180423]
[1672782806462,5.23011335,1212.3,1212.2,47.73180423]
[1672782806704,5.23011335,1212.3,1212.2,41.26280253]
[1672782806875,8.32261393,1212.3,1212.2,41.26280253]
[1672782807114,8.94315636,1212.3,1212.2,41.26280253]
[1672782807308,4.4679481,1212.3,1212.2,31.36345253]
[1672782807525,8.94315636,1212.3,1212.2,11.56475253]
[1672782808049,8.94315636,1212.3,1212.2,21.46410253]
[1672782808491,8.94315636,1212.3,1212.2,7.18589139]
[1672782809256,12.25598063,1212.3,1212.2,4.18589139]
[1672782809509,12.25598063,1212.3,1212.2,2.05389139]
[1672782811045,12.25598063,1212.3,1212.2,0.00489139]
[1672782811466,17.25598063,1212.3,1212.2,0.00489139]
[1672782815147,27.15451063,1212.3,1212.2,0.00489139]
[1672782815296,17.25598063,1212.3,1212.2,0.00489139]
[1672782828163,17.25598063,1212.3,1212.2,0.00126626]
[1672782832364,13.94315636,1212.3,1212.2,0.00126626]
[1672782836470,23.84168636,1212.3,1212.2,0.00126626]
[1672782837722,33.74021636,1212.3,1212.2,0.00126626]
[1672782838484,23.84168636,1212.3,1212.2,0.00126626]
[1672782838633,33.74021636,1212.3,1212.2,0.00126626]
[1672782838842,30.02717335,1212.3,1212.2,0.00126626]
[1672782839054,20.12864335,1212.3,1212.2,0.00126626]
[1672782839346,23.84133654,1212.3,1212.2,0.00126626]
[1672782839516,20.12864335,1212.3,1212.2,0.00126626]
[1672782839932,30.02717335,1212.3,1212.2,0.00126626]
[1672782840108,36.25423632,1212.3,1212.2,0.00126626]
[1672782840323,26.35570632,1212.3,1212.2,0.00126626]
[1672782842161,30.06855669,1212.3,1212.2,0.00126626]
[1672782842353,20.17002669,1212.3,1212.2,0.00126626]
[1672782845619,20.17002669,1212.3,1212.2,9.90061626]
[1672782845793,13.94296372,1212.3,1212.2,9.99961626]
[1672782847107,8.94296372,1212.3,1212.2,9.99961626]
[1672782848775,8.94296372,1212.3,1212.2,22.39339235]
[1672782849385,8.94296372,1212.3,1212.2,12.49404235]
[1672782850319,8.94296372,1212.3,1212.2,2.59222205]
[1672782850687,8.94296372,1212.3,1212.2,12.39377609]
[1672782850901,8.94296372,1212.3,1212.2,12.49157205]
[1672782851743,8.94296372,1212.3,1212.2,2.59222205]
[1672782851893,8.94296372,1212.3,1212.2,2.49442609]
[1672782852318,8.94296372,1212.3,1212.2,12.39377609]
[1672782852529,8.94296372,1212.3,1212.2,12.49157205]
[1672782853637,8.94296372,1212.3,1212.2,2.59222205]
[1672782853944,8.94296372,1212.3,1212.2,2.49442609]
[1672782854099,8.94296372,1212.3,1212.2,12.39377609]
[1672782854310,8.94296372,1212.3,1212.2,12.49157205]
[1672782855727,8.94296372,1212.3,1212.2,2.59222205]
[1672782855939,8.94296372,1212.3,1212.2,2.49442609]
[1672782856303,8.94296372,1212.3,1212.2,32.19247609]
[1672782856518,4.46775546,1212.3,1212.2,21.76496238]
[1672782856726,4.46775546,1212.3,1212.2,31.66431238]
[1672782856958,4.46775546,1212.3,1212.2,21.76496238]
[1672782857168,4.46775546,1212.3,1212.2,16.64043319]
[1672782858931,8.94296372,1212.3,1212.2,6.74108319]
[1672782863148,8.94296372,1212.3,1212.2,0.09779596]
[1672782863407,8.94296372,1212.3,1212.1,38.85242584]
[1672782863569,3.09504606,1212.2,1212.1,43.00128698]
[1672782863776,3.09504606,1212.2,1212.1,53.01821113]
[1672782866631,3.09504606,1212.2,1212.1,43.11834113]
[1672782866820,3.09504606,1212.2,1212.1,33.21847113]
[1672782867344,28.80675372,1212.3,1212.1,16.53206698]
[1672782867664,18.84154372,1212.3,1212.1,16.53206698]
[1672782868029,28.74007372,1212.3,1212.1,16.53206698]
[1672782868246,28.73637131,1212.3,1212.1,16.53206698]
[1672782868557,3.71285037,1212.2,1212.1,16.53206698]
[1672782869089,14.42858305,1212.3,1212.1,16.30206698]
[1672782869235,8.93926131,1212.3,1212.1,26.20212698]
[1672782870392,3.71285037,1212.2,1212.1,26.20212698]
[1672782870597,3.71285037,1212.2,1212.1,32.93973096]
[1672782871495,3.71285037,1212.2,1212.1,26.20212698]
[1672782871496,8.18805863,1212.2,1212.1,26.20212698]
[1672782873857,3.71285037,1212.2,1212.1,26.20212698]
[1672782874336,9.00526131,1212.3,1212.1,26.20212698]
[1672782874482,8.93926131,1212.3,1212.1,26.20212698]
[1672782875331,8.18805863,1212.2,1212.1,10.10420584]
[1672782875537,37.88610863,1212.2,1212.1,10.10420584]
[1672782878435,27.98675863,1212.2,1212.1,10.10420584]
[1672782879238,18.08740863,1212.2,1212.1,10.10420584]
[1672782880304,27.98675863,1212.2,1212.1,10.10420584]
[1672782881953,18.08740863,1212.2,1212.1,10.10420584]
[1672782882165,8.18805863,1212.2,1212.1,10.10420584]
[1672782882391,18.08740863,1212.2,1212.1,10.10420584]
[1672782886424,27.98675863,1212.2,1212.1,10.10420584]
[1672782893016,27.98675863,1212.2,1212.1,3.10420584]
[1672782893226,27.98675863,1212.2,1212.1,3.00274571]
[1672782914813,24.27390826,1212.2,1212.1,3.00274571]
[1672782915280,28.59670459,1212.2,1212.1,3.00274571]
[1672782916338,27.98899912,1212.2,1212.1,3.00274571]
[1672782917120,27.98899912,1212.2,1212.1,3.00026679]
[1672782918335,18.08964912,1212.2,1212.1,3.00026679]
[1672782918910,14.37455826,1212.2,1212.1,3.00026679]
[1672782927442,28.59670459,1212.2,1212.1,3.00026679]
[1672782929076,29.57136623,1212.2,1212.1,3.00026679]
[1672782931238,19.67201623,1212.2,1212.1,3.00026679]
[1672782937579,19.06456053,1212.2,1212.1,3.00026679]
[1672782940406,15.3492199,1212.2,1212.1,3.00026679]
[1672782940622,15.3492199,1212.2,1212.1,2.99795864]
[1672782951968,19.06443964,1212.2,1212.1,2.99795864]
[1672782953334,22.90987303,1212.2,1212.0,0.10047881]
[1672782953544,22.90987303,1212.2,1212.0,7.15154399]
[1672782953756,19.06443964,1212.2,1212.0,7.24933995]
[1672782954071,3.71521974,1212.1,1212.0,7.24933995]
[1672782958733,3.71521974,1212.1,1212.0,17.15032995]
[1672782960413,3.71521974,1212.1,1212.0,7.24933995]
[1672782961248,3.71521974,1212.1,1212.0,17.15032995]
[1672782961567,3.71521974,1212.1,1212.0,7.24933995]
[1672782962160,8.190428,1212.1,1212.0,7.24933995]
[1672782965359,3.71521974,1212.1,1212.0,7.24644343]
[1672782967982,8.190428,1212.1,1212.0,7.24644343]
[1672782968188,3.71521974,1212.1,1212.0,7.24644343]
[1672782968982,8.190428,1212.1,1212.0,7.24644343]
[1672782969202,3.71521974,1212.1,1212.0,7.24644343]
[1672782969990,8.190428,1212.1,1212.0,7.24644343]
[1672782970994,3.71521974,1212.1,1212.0,7.24644343]
[1672782971211,8.190428,1212.1,1212.0,7.24644343]
[1672782973343,3.71521974,1212.1,1212.0,7.24644343]
[1672782973722,8.190428,1212.1,1212.0,7.24644343]
[1672782974137,3.71521974,1212.1,1212.0,7.24644343]
[1672782974602,8.190428,1212.1,1212.0,7.24644343]
[1672782974838,3.71521974,1212.1,1212.0,7.24644343]
[1672782976955,8.190428,1212.1,1212.0,7.24644343]
[1672782977664,8.190428,1212.1,1212.0,17.14743343]
[1672782978378,3.71521974,1212.1,1212.0,7.24644343]
[1672782978564,3.09576319,1212.1,1212.0,41.09984474]
[1672782978777,3.09576319,1212.1,1212.0,49.00405944]
[1672782980828,3.09576319,1212.1,1212.0,49.23405944]
[1672782980989,3.09576319,1212.1,1212.0,39.33306944]
[1672782981204,9.23108964,1212.2,1212.0,41.36606944]
[1672782981425,9.16508964,1212.2,1212.1,3.65324719]
[1672782981843,9.16508964,1212.2,1212.1,13.55341719]
[1672782982058,9.16508964,1212.2,1212.1,13.65121315]
[1672782982493,9.16508964,1212.2,1212.1,3.75104315]
[1672782982663,9.16508964,1212.2,1212.1,3.65324719]
[1672782985762,9.16708964,1212.2,1212.1,3.65324719]
[1672782985982,9.16508964,1212.2,1212.1,3.65324719]
[1672782986834,9.16133981,1212.2,1212.1,3.65324719]
[1672782989199,9.16133981,1212.2,1212.1,3.65434357]
[1672782989417,9.16133981,1212.2,1212.0,39.70726515]
[1672782989418,9.16133981,1212.2,1212.0,43.36123398]
[1672782989621,3.09511883,1212.1,1212.0,40.7153686]
[1672782989831,9.22733981,1212.2,1212.0,40.7153686]
[1672782990102,9.16133981,1212.2,1212.0,40.7153686]
[1672782990620,3.09507366,1212.1,1212.0,40.7153686]
[1672783000853,3.09507366,1212.1,1212.0,20.55925398]
[1672783001069,27.990768,1212.1,1212.0,4.24644343]
[1672783001415,37.88903971,1212.1,1212.0,4.14864747]
[1672783002204,27.98886971,1212.1,1212.0,4.14864747]
[1672783003043,24.27554826,1212.1,1212.0,4.14864747]
[1672783003254,27.9889176,1212.1,1212.0,4.14864747]
[1672783008747,18.0887476,1212.1,1212.0,4.14864747]
[1672783008961,27.9889176,1212.1,1212.0,4.14864747]
[1672783011424,27.9889176,1212.1,1212.0,4.1463337]
[1672783013912,18.0887476,1212.1,1212.0,4.1463337]
[1672783020111,22.35376186,1212.1,1211.9,0.10620822]
[1672783020322,8.1885776,1212.0,1211.9,0.00841226]
[1672783020521,39.17817826,1212.0,1211.9,0.00841226]
[1672783020723,42.88875604,1212.0,1211.9,0.00841226]
[1672783020967,49.0949597,1212.0,1211.9,0.00841226]
[1672783024127,49.0972261,1212.0,1211.9,0.00841226]
[1672783027936,44.62201784,1212.0,1211.9,0.00841226]
[1672783028159,34.72102784,1212.0,1211.9,0.00841226]
[1672783029183,24.82003784,1212.0,1211.9,0.00841226]
[1672783029361,14.91904784,1212.0,1211.9,0.00841226]
[1672783030670,8.71284418,1212.0,1211.9,0.00841226]
[1672783031711,8.71284418,1212.0,1211.9,9.91021226]
[1672783031902,8.71284418,1212.0,1211.9,10.00800822]
[1672783032570,3.71284418,1212.0,1211.9,19.90980822]
[1672783032723,3.71284418,1212.0,1211.9,19.9066884]
[1672783033464,5.01143966,1212.0,1211.9,19.9066884]
[1672783033676,5.01143966,1212.0,1211.9,0.1030884]
[1672783033677,10.01143966,1212.0,1211.9,0.1030884]
[1672783033922,10.01143966,1212.0,1211.9,0.00529244]
[1672783043279,10.01091777,1212.0,1211.9,0.00529244]
[1672783044100,5.0,1211.9,1211.8,24.33608156]
[1672783044309,8.71007907,1211.9,1211.8,24.33608156]
[1672783045368,8.71007907,1211.9,1211.8,19.8608733]
[1672783045801,3.71007907,1211.9,1211.8,19.8608733]
[1672783046020,3.71007907,1211.9,1211.8,24.33608156]
[1672783046416,3.71007907,1211.9,1211.8,19.8608733]
[1672783047936,3.71007907,1211.9,1211.8,24.33608156]
[1672783048099,3.71007907,1211.9,1211.8,19.8608733]
[1672783048515,3.71007907,1211.9,1211.8,24.33608156]
[1672783049359,3.71007907,1211.9,1211.8,19.8608733]
[1672783049564,10.07694095,1212.0,1211.8,24.33608156]
[1672783049779,10.01094095,1212.0,1211.8,24.33608156]
[1672783050404,10.01094095,1212.0,1211.8,14.43367156]
[1672783050872,3.09211667,1211.9,1211.8,14.43367156]
[1672783051039,3.09211156,1211.9,1211.8,14.43367156]
[1672783051247,10.07694095,1212.0,1211.8,14.43367156]
[1672783051512,10.01094095,1212.0,1211.8,14.43367156]
[1672783053137,10.01094095,1212.0,1211.8,4.57300422]
[1672783053343,3.71007907,1211.9,1211.8,4.47520826]
[1672783053630,3.71007907,1211.9,1211.7,56.36744836]
[1672783053772,5.56795184,1211.8,1211.7,47.96060124]
[1672783053979,5.56795184,1211.8,1211.7,52.4358095]
[1672783054526,3.09330658,1211.8,1211.7,42.5326695]
[1672783056874,3.87114496,1211.8,1211.7,0.1028001]
[1672783057026,3.87114496,1211.8,1211.7,0.00500414]
[1672783057027,49.18632297,1211.8,1211.7,0.00500414]
[1672783057450,4.48769736,1211.8,1211.7,0.00500414]
[1672783057831,14.43233838,1211.8,1211.7,0.00500414]
[1672783057972,18.14413025,1211.8,1211.7,0.00500414]
[1672783058183,18.14213025,1211.8,1211.7,0.00500414]
[1672783059549,28.04475025,1211.8,1211.7,0.00500414]
[1672783060554,24.33495838,1211.8,1211.7,0.00500414]
[1672783060703,28.04458748,1211.8,1211.7,0.00500414]
[1672783062436,18.14196748,1211.8,1211.7,0.00500414]
[1672783062760,18.14196748,1211.8,1211.7,9.90844414]
[1672783062761,12.3641291,1211.8,1211.7,9.90844414]
[1672783062978,11.74543819,1211.8,1211.7,4.57800836]
[1672783063290,11.74543819,1211.8,1211.7,4.4802124]
[1672783063457,3.09093819,1211.8,1211.7,4.4802124]
[1672783065329,3.09093819,1211.8,1211.7,4.47746187]
[1672783066270,3.08725038,1211.8,1211.7,4.47746187]
[1672783067163,12.98987038,1211.8,1211.7,4.47746187]
[1672783068416,3.08725038,1211.8,1211.7,4.47746187]
[1672783068621,12.98987038,1211.8,1211.7,4.47746187]
[1672783069009,9.90262,1211.8,1211.7,4.47746187]
[1672783069216,19.80524,1211.8,1211.7,4.47746187]
[1672783069474,23.5148691,1211.8,1211.7,4.47746187]
[1672783070490,19.80524,1211.8,1211.7,4.47746187]
[1672783072746,23.5148691,1211.8,1211.7,0.00225361]
[1672783073873,23.5148691,1211.8,1211.7,4.47746187]
[1672783074510,23.5148691,1211.8,1211.7,0.00225361]
[1672783074677,19.80524,1211.8,1211.7,0.00225361]
[1672783074889,23.5148691,1211.8,1211.7,0.00225361]
[1672783077870,23.5148691,1211.8,1211.7,4.47746187]
[1672783078081,23.5148691,1211.8,1211.7,0.00225361]
[1672783078296,23.5148691,1211.8,1211.7,4.47746187]
[1672783078509,3.7096291,1211.8,1211.7,8.62632301]
[1672783078840,3.09094603,1211.8,1211.7,11.72411897]
[1672783078997,9.90462,1211.8,1211.7,11.72111897]
[1672783079213,9.90262,1211.8,1211.7,11.72411897]
[1672783079520,12.99378254,1211.8,1211.7,11.72411897]
[1672783079733,9.90262,1211.8,1211.7,11.72411897]
[1672783080546,12.99376623,1211.8,1211.7,11.72411897]
[1672783080834,9.90262,1211.8,1211.7,11.72411897]
[1672783081249,24.4889472,1211.9,1211.7,13.76511897]
[1672783081463,3.09122885,1211.8,1211.7,33.57149897]
[1672783081671,3.09122885,1211.8,1211.7,48.13629403]
[1672783082264,6.32908643,1211.8,1211.7,9.28991071]
[1672783082475,16.85010668,1211.8,1211.7,9.28991071]
[1672783082897,6.94748668,1211.8,1211.7,9.28991071]
[1672783083152,16.85010668,1211.8,1211.7,13.76511897]
[1672783084711,6.94748668,1211.8,1211.7,9.28991071]
[1672783084903,6.94748668,1211.8,1211.7,13.76511897]
[1672783085313,37.61492861,1211.8,1211.7,3.10004957]
[1672783085547,42.9562382,1211.8,1211.7,0.00225361]
[1672783085754,45.42985361,1211.8,1211.7,0.00225361]
[1672783085965,4.32816989,1211.8,1211.7,4.15111475]
[1672783086158,4.32816989,1211.8,1211.7,21.52976301]
[1672783086159,4.89677441,1211.8,1211.7,21.52976301]
[1672783086488,4.89677441,1211.8,1211.7,11.72128527]
[1672783088520,4.89677441,1211.8,1211.7,21.62472527]
[1672783089681,4.89677441,1211.8,1211.7,31.52816527]
[1672783090002,1.18800452,1211.8,1211.7,41.43160527]
[1672783091223,3.77476989,1211.9,1211.7,43.47960527]
[1672783091585,3.77476989,1211.9,1211.7,43.47660527]
[1672783091586,3.71076989,1211.9,1211.7,43.47660527]
[1672783091894,3.70876989,1211.9,1211.7,43.47960527]
[1672783092468,3.09115419,1211.8,1211.7,43.47960527]
[1672783092676,3.77476989,1211.9,1211.7,43.47960527]
[1672783092883,3.70876989,1211.9,1211.7,43.47960527]
[1672783093734,15.59126273,1212.0,1211.7,43.47960527]
[1672783093735,3.70876989,1211.8,1211.7,43.47960527]
[1672783095218,3.09185546,1211.8,1211.7,43.47960527]
[1672783095425,3.09183702,1211.8,1211.7,33.57616527]
[1672783095635,3.09178398,1211.8,1211.7,43.47960527]
[1672783095850,3.77476989,1211.9,1211.7,43.47960527]
[1672783096085,6.01517265,1211.9,1211.7,43.47960527]
[1672783096462,3.70876989,1211.8,1211.7,43.47960527]
[1672783097030,3.09181576,1211.8,1211.7,43.47960527]
[1672783097242,3.77476989,1211.9,1211.7,43.47960527]
[1672783097446,3.70876989,1211.9,1211.7,43.47960527]
[1672783098352,3.09269712,1211.8,1211.7,43.47960527]
[1672783098601,3.77476989,1211.9,1211.7,43.47960527]
[1672783098817,3.70876989,1211.9,1211.7,43.47960527]
[1672783099666,3.70876989,1211.9,1211.8,31.75586]
[1672783099857,3.70876989,1211.9,1211.8,36.32886422]
[1672783100376,3.70876989,1211.9,1211.8,31.85365596]